bitfinex/quotes_SOLUSD_20251031
["timestamp","ask_amount","ask_price","bid_price","bid_amount"]
[1761897409133,0.69,185.56,185.52,9.78882769]
[1761897409134,0.69,185.56,185.54,7.40116096]
[1761897410231,0.2,185.57,185.54,7.40116096]
[1761897410442,0.2,185.57,185.55,12.45052005]
[1761897410620,0.2,185.57,185.55,11.80052005]
[1761897411041,0.2,185.57,185.56,5.38909247]
[1761897411745,0.2,185.57,185.56,17.83961252]
[1761897411942,0.2,185.57,185.56,17.18961252]
[1761897413237,0.2,185.57,185.56,17.83961252]
[1761897415224,0.2,185.57,185.56,79.53961252]
[1761897426044,0.2,185.59,185.57,9.78882769]
[1761897426349,0.2,185.59,185.58,2.01169236]
[1761897426562,0.2,185.59,185.58,12.48052005]
[1761897428268,0.2,185.59,185.58,17.86903174]
[1761897428438,0.2,185.59,185.58,25.91580118]
[1761897428639,0.2,185.59,185.58,15.17733938]
[1761897428934,0.89,185.59,185.58,15.17733938]
[1761897429166,0.2,185.59,185.58,17.18903174]
[1761897429754,0.2,185.59,185.58,78.88903174]
[1761897436360,0.2,185.59,185.58,79.56903174]
[1761897436669,0.2,185.59,185.58,78.88903174]
[1761897440569,0.2,185.59,185.58,79.59903174]
[1761897440748,0.2,185.59,185.58,78.88903174]
[1761897445168,0.2,185.59,185.58,76.87733938]
[1761897445676,0.2,185.59,185.58,78.88903174]
[1761897446557,0.2,185.59,185.58,76.87733938]
[1761897446756,0.2,185.59,185.58,78.88903174]
[1761897447962,0.88,185.59,185.58,78.88903174]
[1761897448572,0.2,185.59,185.58,76.87733938]
[1761897448776,0.2,185.59,185.58,78.88903174]
[1761897449980,0.2,185.59,185.58,76.87733938]
[1761897450182,0.2,185.59,185.58,78.88903174]
[1761897450662,0.2,185.59,185.58,76.87733938]
[1761897450854,0.2,185.59,185.58,78.88903174]
[1761897451054,0.9,185.59,185.58,78.88903174]
[1761897451559,0.2,185.59,185.58,78.88903174]
[1761897452784,0.9,185.59,185.58,15.17733938]
[1761897453652,2.91169236,185.59,185.54,61.7]
[1761897453852,0.7,185.58,185.55,15.1782106]
[1761897454383,0.7,185.58,185.49,5.3911262]
[1761897454384,2.01169236,185.56,185.49,5.3911262]
[1761897454587,8.74676944,185.58,185.52,9.78882769]
[1761897454764,2.01169236,185.56,185.51,2.01169236]
[1761897455096,0.7,185.55,185.51,2.01169236]
[1761897455456,0.7,185.55,185.5,0.71]
[1761897455664,0.7,185.55,185.51,3.14402738]
[1761897455973,3.84402738,185.55,185.5,3.85402738]
[1761897456353,0.7,185.54,185.5,3.85402738]
[1761897457068,0.7,185.54,185.51,5.39054498]
[1761897457575,3.14402738,185.56,185.52,0.71]
[1761897457768,3.14402738,185.56,185.51,22.01093482]
[1761897457962,0.7,185.55,185.51,22.72093482]
[1761897458167,0.7,185.55,185.51,22.01093482]
[1761897459281,0.7,185.55,185.52,3.14402738]
[1761897459980,0.7,185.55,185.51,0.71]
[1761897460178,0.7,185.55,185.51,3.14402738]
[1761897460374,0.7,185.55,185.52,5.39025442]
[1761897464005,3.84402738,185.55,185.5,22.01157801]
[1761897464398,0.7,185.55,185.51,3.14402738]
[1761897464579,0.7,185.54,185.52,3.14402738]
[1761897465074,0.7,185.54,185.52,8.53407657]
[1761897465778,0.7,185.55,185.52,8.53407657]
[1761897465975,0.7,185.55,185.52,9.24407657]
[1761897466173,0.7,185.55,185.52,8.53407657]
[1761897468889,0.7,185.55,185.52,5.39004919]
[1761897470112,0.7,185.55,185.52,3.14402738]
[1761897470400,3.14402738,185.58,185.52,3.14402738]
[1761897470586,3.84402738,185.58,185.53,3.85402738]
[1761897470787,0.7,185.57,185.53,3.85402738]
[1761897470988,0.7,185.57,185.53,3.14402738]
[1761897472101,0.7,185.57,185.54,5.38967338]
[1761897473500,6.746114,185.58,185.54,5.38967338]
[1761897473501,4.30208662,185.58,185.54,9.24370076]
[1761897473694,0.7,185.58,185.54,9.24370076]
[1761897473896,0.7,185.57,185.54,9.24370076]
[1761897474396,0.7,185.57,185.54,8.53370076]
[1761897474801,0.2,185.59,185.56,3.14402738]
[1761897474983,0.2,185.59,185.58,3.14402738]
[1761897476378,0.2,185.59,185.58,8.53253907]
[1761897477495,0.2,185.59,185.58,19.03136676]
[1761897478592,0.2,185.59,185.58,18.32136676]
[1761897478996,0.2,185.59,185.58,19.04136676]
[1761897485530,0.2,185.59,185.58,80.74136676]
[1761897486621,0.2,185.59,185.58,82.90113566]
[1761897488110,0.2,185.59,185.58,86.04516304]
[1761897494225,0.2,185.59,185.58,86.04516304]
[1761897498607,0.2,185.61,185.59,9.78882769]
[1761897498809,0.2,185.61,185.6,3.14402738]
[1761897499011,0.2,185.61,185.6,65.51402738]
[1761897499310,0.2,185.61,185.6,77.46227418]
[1761897500138,0.2,185.61,185.6,82.85020521]
[1761897502126,0.2,185.61,185.6,79.03617783]
[1761897502426,0.2,185.61,185.6,82.18020521]
[1761897502614,0.2,185.61,185.6,80.0207861]
[1761897503523,0.2,185.61,185.6,80.6907861]
[1761897503909,0.2,185.61,185.6,80.0207861]
[1761897506429,0.2,185.61,185.6,80.6907861]
[1761897507920,0.2,185.63,185.6,94.16061368]
[1761897508217,0.2,185.63,185.62,12.93285507]
[1761897508622,0.2,185.63,185.62,13.60285507]
[1761897509030,0.2,185.63,185.62,18.99020557]
[1761897511910,0.2,185.63,185.62,80.69020557]
[1761897514346,1e-08,185.63,185.62,80.69020557]
[1761897514654,1e-08,185.66,185.65,30.38082769]
[1761897514958,0.7,185.71,185.66,9.78882769]
[1761897515243,0.2,185.76,185.71,9.78882769]
[1761897515244,0.7,185.73,185.71,9.78882769]
[1761897515544,0.7,185.73,185.72,12.93285507]
[1761897515767,0.7,185.75,185.73,9.78882769]
[1761897516058,0.9,185.76,185.74,3.14402738]
[1761897516219,0.9,185.76,185.75,8.52760746]
[1761897516538,0.2,185.76,185.75,18.31643515]
[1761897516736,0.9,185.76,185.75,15.17240777]
[1761897517448,0.9,185.76,185.75,17.17904233]
[1761897518021,0.9,185.76,185.75,15.17240777]
[1761897521954,0.9,185.76,185.75,9.78882769]
[1761897522137,0.9,185.76,185.75,15.17240777]
[1761897523051,0.9,185.76,185.73,7.54189958]
[1761897523343,0.7,185.75,185.73,5.38387849]
[1761897523544,0.7,185.75,185.72,80.54548954]
[1761897523754,0.7,185.75,185.72,82.5521241]
[1761897524848,0.7,185.75,185.72,67.0844497]
[1761897525038,0.7,185.75,185.72,69.09108426]
[1761897526352,0.7,185.75,185.73,2.00663456]
[1761897527350,0.7,185.75,185.72,69.09108426]
[1761897527962,0.7,185.75,185.73,2.00663456]
[1761897528854,0.7,185.75,185.74,2.00663456]
[1761897529446,0.7,185.75,185.74,63.70663456]
[1761897529964,0.7,185.75,185.74,69.09050448]
[1761897530174,0.9,185.76,185.74,69.09050448]
[1761897530341,0.9,185.76,185.75,2.00663456]
[1761897530544,0.2,185.76,185.75,2.00663456]
[1761897531247,0.9,185.76,185.75,2.00663456]
[1761897531435,0.9,185.76,185.75,7.39021464]
[1761897535261,0.2,185.76,185.75,17.17904233]
[1761897538164,0.2,185.76,185.75,15.17240777]
[1761897539673,0.9,185.76,185.75,15.17240777]
[1761897540553,2.90663456,185.76,185.75,5.38358008]
[1761897540758,2.90663456,185.76,185.73,61.7]
[1761897541068,2.90663456,185.76,185.72,5.38417857]
[1761897541069,2.00663456,185.74,185.72,5.38417857]
[1761897541261,2.00663456,185.73,185.66,75.87475985]
[1761897541449,0.7,185.74,185.67,15.1747274]
[1761897541649,2.00663456,185.73,185.67,17.18136196]
[1761897541861,0.7,185.75,185.67,17.18136196]
[1761897542062,2.00663456,185.73,185.67,17.18136196]
[1761897542571,0.7,185.72,185.67,30.64611124]
[1761897543270,0.7,185.72,185.67,31.35611124]
[1761897543850,0.7,185.72,185.69,2.00663456]
[1761897544265,0.7,185.72,185.7,5.38502961]
[1761897545772,0.7,185.72,185.71,2.00663456]
[1761897545973,0.7,185.72,185.7,5.38502961]
[1761897547182,0.7,185.72,185.7,2.00663456]
[1761897547761,0.7,185.71,185.7,2.00663456]
[1761897548372,0.7,185.71,185.7,7.39166417]
[1761897550003,0.7,185.71,185.7,69.09166417]
[1761897554187,0.7,185.71,185.7,63.70663456]
[1761897554394,2.70663456,185.71,185.65,9.78882769]
[1761897554571,2.00663456,185.7,185.64,5.38648632]
[1761897554763,0.7,185.7,185.65,2.00663456]
[1761897555062,7.39137619,185.71,185.69,2.00663456]
[1761897555063,0.7,185.71,185.69,2.00663456]
[1761897555277,21.292,185.71,185.69,2.00663456]
[1761897555477,0.7,185.71,185.69,2.00663456]
[1761897555662,0.7,185.7,185.69,2.00663456]
[1761897556870,0.7,185.7,185.69,7.39195417]
[1761897557988,0.7,185.7,185.69,2.00663456]
[1761897559406,0.7,185.7,185.69,7.39195417]
[1761897560200,0.7,185.7,185.69,2.00663456]
[1761897560685,3.60596334,185.74,185.69,7.39195417]
[1761897560878,0.67,185.72,185.7,2.00663456]
[1761897561965,0.67,185.72,185.69,7.39195417]
[1761897564763,0.67,185.72,185.69,69.09195417]
[1761897565495,0.67,185.72,185.7,2.00663456]
[1761897566589,0.67,185.72,185.69,69.09195417]
[1761897567598,0.67,185.72,185.7,7.39162291]
[1761897570501,0.67,185.72,185.7,69.09162291]
[1761897571507,0.72,185.73,185.71,2.00663456]
[1761897571707,0.72,185.73,185.7,69.09162291]
[1761897571891,0.72,185.73,185.7,61.7]
[1761897572092,22.59863456,185.71,185.64,9.78882769]
[1761897572279,5.6125979,185.7,185.64,11.79546225]
[1761897572478,2.72663456,185.7,185.64,11.79546225]
[1761897572680,0.72,185.69,185.64,12.48546225]
[1761897572993,0.72,185.69,185.64,17.8720415]
[1761897573586,2.00663456,185.68,185.63,9.78882769]
[1761897573777,2.00663456,185.68,185.62,2.69663456]
[1761897573778,0.72,185.67,185.62,2.69663456]
[1761897574400,0.72,185.67,185.63,5.38701688]
[1761897574705,0.72,185.67,185.63,6.07701688]
[1761897575100,0.72,185.67,185.63,8.08365144]
[1761897577399,3.14034388,185.66,185.61,15.17633357]
[1761897577584,3.14034388,185.65,185.61,76.87633357]
[1761897577785,3.86034388,185.66,185.61,76.87633357]
[1761897578095,0.72,185.66,185.61,80.70667745]
[1761897578301,0.72,185.65,185.62,3.14034388]
[1761897578799,0.72,185.65,185.61,80.70667745]
[1761897579598,0.72,185.65,185.61,80.01667745]
[1761897580219,0.72,185.65,185.61,80.70667745]
[1761897581105,0.72,185.65,185.62,8.52762962]
[1761897581688,3.14034388,185.67,185.62,8.52762962]
[1761897581892,20.592,185.68,185.63,0.69]
[1761897582190,0.72,185.67,185.63,12.92917157]
[1761897582716,3.14034388,185.66,185.62,5.38728574]
[1761897583187,0.72,185.65,185.62,8.52762962]
[1761897583589,0.72,185.65,185.62,9.21762962]
[1761897584009,3.86034388,185.65,185.61,9.78882769]
[1761897584394,3.86034388,185.65,185.6,8.52824643]
[1761897584395,0.72,185.64,185.6,8.52824643]
[1761897584592,0.72,185.64,185.6,5.38790255]
[1761897584793,0.72,185.64,185.6,8.52824643]
[1761897585506,0.72,185.64,185.6,9.21824643]
[1761897585708,0.72,185.64,185.61,3.14034388]
[1761897586499,0.72,185.64,185.61,8.52785916]
[1761897587106,0.72,185.64,185.61,5.38751528]
[1761897588012,0.72,185.64,185.61,67.08751528]
[1761897588898,0.72,185.64,185.61,70.22785916]
[1761897589691,0.72,185.64,185.61,67.08751528]
[1761897589887,8.5262628,185.67,185.62,3.14034388]
[1761897590093,0.72,185.66,185.62,3.14034388]
[1761897590300,21.312,185.66,185.62,8.52765016]
[1761897590505,21.312,185.66,185.62,9.21765016]
[1761897590706,20.592,185.66,185.63,3.83034388]
[1761897591103,21.312,185.66,185.63,3.83034388]
[1761897591795,21.312,185.66,185.63,9.21737264]
[1761897592220,21.312,185.66,185.63,6.07702876]
[1761897593017,21.312,185.66,185.63,9.21737264]
[1761897593724,0.72,185.66,185.63,9.21737264]
[1761897594016,21.312,185.66,185.63,9.21737264]
[1761897594312,21.312,185.66,185.63,6.07702876]
[1761897594520,21.312,185.66,185.63,9.21737264]
[1761897595122,21.312,185.69,185.65,3.14034388]
[1761897595292,21.312,185.69,185.66,3.14034388]
[1761897595492,20.592,185.68,185.66,3.14034388]
[1761897595705,20.592,185.68,185.65,3.14034388]
[1761897595910,21.312,185.67,185.65,3.14034388]
[1761897596089,0.72,185.67,185.65,8.5267089]
[1761897596295,0.72,185.66,185.65,3.14034388]
[1761897596494,0.72,185.66,185.64,9.78882769]
[1761897596993,0.72,185.66,185.63,5.38706028]
[1761897600311,20.592,185.67,185.63,6.09706028]
[1761897600614,0.68,185.71,185.66,3.14034388]
[1761897600800,0.68,185.71,185.67,8.5261687]
[1761897601002,0.68,185.71,185.67,5.38582482]
[1761897601203,12.80754854,185.71,185.66,5.38614376]
[1761897601505,3.14034388,185.7,185.66,5.38614376]
[1761897601818,0.68,185.7,185.66,9.23648764]
[1761897602021,0.68,185.7,185.66,70.93648764]
[1761897602196,0.68,185.7,185.68,3.14034388]
[1761897602397,21.272,185.7,185.69,3.14034388]
[1761897602598,21.272,185.7,185.66,19.56161828]
[1761897602819,21.272,185.7,185.69,3.14034388]
[1761897603029,0.68,185.69,185.67,3.14034388]
[1761897603204,0.68,185.69,185.66,8.52648764]
[1761897603517,21.272,185.7,185.68,3.14034388]
[1761897604528,21.272,185.7,185.67,8.52614739]
[1761897605403,21.272,185.7,185.68,3.14034388]
[1761897605604,0.68,185.7,185.68,8.52567188]
[1761897606413,0.68,185.7,185.68,3.14034388]
[1761897606621,0.68,185.7,185.67,8.52621746]
[1761897606822,24.41234388,185.7,185.66,5.38616017]
[1761897607006,0.68,185.69,185.66,5.38616017]
[1761897607422,0.68,185.69,185.66,8.52650405]
[1761897607822,20.592,185.7,185.67,0.71]
[1761897608026,0.68,185.69,185.66,8.52650405]
[1761897608413,20.592,185.71,185.68,3.14034388]
[1761897608802,21.272,185.71,185.68,3.14034388]
[1761897609028,0.68,185.7,185.68,3.14034388]
[1761897609226,3.60830382,185.72,185.69,3.14034388]
[1761897609541,0.68,185.74,185.71,8.52499156]
[1761897609830,20.592,185.73,185.69,61.7]
[1761897610011,3.14034388,185.72,185.69,61.7]
[1761897610207,7.4286477,185.72,185.69,61.7]
[1761897610430,0.68,185.71,185.69,61.7]
[1761897611026,3.82034388,185.71,185.69,61.7]
[1761897611234,0.68,185.71,185.69,61.7]
[1761897611540,20.592,185.69,185.63,3.14034388]
[1761897611720,3.14034388,185.68,185.63,3.14034388]
[1761897612032,3.82034388,185.68,185.62,18.31648282]
[1761897612237,0.68,185.67,185.62,18.31648282]
[1761897612613,0.68,185.67,185.62,19.02648282]
[1761897613009,0.68,185.67,185.64,3.14034388]
[1761897614310,0.68,185.69,185.65,3.14034388]
[1761897614508,21.272,185.68,185.65,3.14034388]
[1761897615533,21.272,185.68,185.65,8.52679565]
[1761897615828,3.61086877,185.69,185.67,3.14034388]
[1761897616029,20.592,185.69,185.67,3.85034388]
[1761897616231,20.592,185.69,185.67,3.14034388]
[1761897616432,20.592,185.69,185.66,3.14034388]
[1761897616620,20.592,185.69,185.66,13.63917157]
[1761897617013,20.592,185.69,185.66,19.02518728]
[1761897617730,0.68,185.68,185.64,9.78882769]
[1761897618047,3.82034388,185.68,185.63,9.78882769]
[1761897618213,7.43343203,185.68,185.63,9.78882769]
[1761897618415,0.68,185.67,185.63,15.17583355]
[1761897618826,0.68,185.67,185.62,15.1760838]
[1761897618827,3.82034388,185.67,185.62,15.1760838]
[1761897619027,0.68,185.67,185.62,19.03642768]
[1761897619235,0.68,185.66,185.62,19.03642768]
[1761897619422,0.68,185.66,185.63,3.14034388]
[1761897619823,0.68,185.66,185.62,18.31642768]
[1761897620023,0.68,185.66,185.62,15.1760838]
[1761897620536,3.14034388,185.65,185.6,9.78882769]
[1761897620723,9.20663585,185.66,185.6,12.92917157]
[1761897620921,0.68,185.65,185.6,13.64917157]
[1761897621629,0.68,185.65,185.6,75.34917157]
[1761897622134,0.68,185.65,185.61,5.38764075]
[1761897622924,6.06650363,185.65,185.6,80.73706653]
[1761897623321,0.68,185.64,185.6,80.73706653]
[1761897624024,0.68,185.64,185.61,9.24791962]
[1761897624454,0.68,185.64,185.61,8.52791962]
[1761897625435,0.68,185.64,185.61,9.24791962]
[1761897627440,21.272,185.64,185.57,0.72]
[1761897627644,3.14034388,185.61,185.54,0.72]
[1761897627944,3.14034388,185.58,185.53,3.14034388]
[1761897628236,4.00885211,185.57,185.53,3.86034388]
[1761897628540,4.00885211,185.56,185.55,3.14034388]
[1761897628750,4.00885211,185.56,185.54,0.72]
[1761897628751,4.00885211,185.56,185.54,3.86034388]
[1761897628949,4.00885211,185.55,185.54,3.86034388]
[1761897629534,4.00885211,185.55,185.54,9.25001726]
[1761897630137,4.00885211,185.55,185.54,6.10967338]
[1761897630334,0.68,185.58,185.54,9.25001726]
[1761897630564,4.00295661,185.57,185.53,3.14034388]
[1761897630743,4.00295661,185.56,185.53,3.86034388]
[1761897630949,4.00295661,185.55,185.54,3.14034388]
[1761897631654,4.00295661,185.55,185.53,3.14034388]
[1761897631847,9.21898127,185.58,185.53,0.72]
[1761897632051,4.69139778,185.57,185.51,6.11049325]
[1761897632357,4.00139778,185.56,185.52,3.14034388]
[1761897632552,3.83034388,185.57,185.53,3.14034388]
[1761897632553,4.00139778,185.55,185.53,3.14034388]
[1761897632751,4.00139778,185.54,185.53,3.14034388]
[1761897633251,25.98007684,185.6,185.53,13.64917157]
[1761897633453,3.14034388,185.54,185.49,64.84034388]
[1761897633641,7.13868705,185.53,185.49,61.7]
[1761897633845,3.99834317,185.52,185.49,61.7]
[1761897634055,0.69,185.53,185.49,67.8110486]
[1761897634255,3.99744008,185.53,185.51,3.14034388]
[1761897634455,20.592,185.55,185.52,3.14034388]
[1761897634657,20.592,185.55,185.51,3.86034388]
[1761897634658,3.99467041,185.54,185.51,3.86034388]
[1761897634838,3.99467041,185.53,185.51,3.86034388]
[1761897635167,0.69,185.55,185.51,3.86034388]
[1761897635547,4.68267999,185.55,185.51,3.14034388]
[1761897635749,7.13302387,185.54,185.49,61.7]
[1761897635955,7.13302387,185.53,185.49,61.7]
[1761897636147,24.42234388,185.53,185.49,61.7]
[1761897636355,20.592,185.49,185.48,0.1]
[1761897637041,3.14034388,185.51,185.48,0.1]
[1761897637240,0.69,185.5,185.48,0.1]
[1761897637748,20.592,185.49,185.48,0.1]
[1761897638149,21.282,185.49,185.48,0.1]
[1761897638662,0.69,185.55,185.48,8.22466307]
[1761897638960,0.69,185.54,185.5,2.01328891]
[1761897639164,20.592,185.52,185.5,2.01328891]
[1761897639565,20.592,185.56,185.51,2.73328891]
[1761897639763,0.69,185.57,185.52,2.01328891]
[1761897640064,20.592,185.55,185.52,2.01328891]
[1761897640286,20.592,185.55,185.51,7.40360639]
[1761897640473,0.69,185.54,185.51,2.01328891]
[1761897641570,0.69,185.54,185.52,2.01328891]
[1761897641755,20.592,185.55,185.52,2.01328891]
[1761897641958,21.282,185.55,185.52,2.01328891]
[1761897642375,21.282,185.55,185.51,2.73328891]
[1761897642672,20.592,185.54,185.51,2.73328891]
[1761897643755,0.69,185.55,185.51,69.82378019]
[1761897644467,0.69,185.55,185.51,67.81049128]
[1761897644772,0.69,185.55,185.52,2.01328891]
[1761897645654,0.69,185.55,185.51,67.81049128]
[1761897645854,0.69,185.55,185.52,2.01328891]
[1761897646254,20.592,185.53,185.51,63.71328891]
[1761897646649,0.69,185.52,185.51,61.7]
[1761897647050,20.592,185.53,185.51,61.7]
[1761897647273,21.282,185.53,185.51,61.7]
[1761897648579,0.69,185.52,185.51,61.7]
[1761897649578,0.69,185.52,185.49,63.71328891]
[1761897649978,0.69,185.52,185.49,61.7]
[1761897650980,0.42043642,185.52,185.49,62.42]
[1761897651376,0.42043642,185.52,185.49,61.7]
[1761897651679,21.01243642,185.52,185.49,61.7]
[1761897652276,21.01243642,185.52,185.49,67.09111093]
[1761897652466,21.01243642,185.52,185.49,69.10439984]
[1761897653474,21.01243642,185.52,185.49,69.82439984]
[1761897653675,0.42043642,185.52,185.49,69.82439984]
[1761897655778,21.282,185.53,185.49,69.82439984]
[1761897656280,2.70328891,185.52,185.49,61.7]
[1761897656662,0.69,185.51,185.49,61.7]
[1761897657169,2.70328891,185.51,185.49,61.7]
[1761897657484,20.592,185.51,185.5,0.72]
[1761897657689,20.592,185.53,185.5,8.12412448]
[1761897658066,20.592,185.53,185.5,0.72]
[1761897658263,21.282,185.53,185.5,0.72]
[1761897658468,21.282,185.53,185.49,67.0910663]
[1761897658469,0.69,185.52,185.49,61.7]
[1761897658786,20.592,185.53,185.5,0.69]
[1761897659862,20.592,185.53,185.5,6.08076345]
[1761897660069,2.73328891,185.54,185.5,6.08076345]
[1761897660283,3.98128529,185.53,185.5,8.09405236]
[1761897660592,26.70115287,185.56,185.51,0.69]
[1761897660895,4.70212931,185.55,185.51,0.69]
[1761897661266,3.98212931,185.54,185.51,0.69]
[1761897661874,2.01328891,185.52,185.5,61.7]
[1761897662490,2.73328891,185.52,185.5,61.7]
[1761897662667,5.39013749,185.53,185.5,61.7]
[1761897662867,5.99817447,185.52,185.5,61.7]
[1761897663071,2.01328891,185.52,185.5,61.7]
[1761897663285,8.1234264,185.53,185.5,61.7]
[1761897663484,3.9866649,185.52,185.5,61.7]
[1761897665487,3.9866649,185.51,185.5,61.7]
[1761897665673,3.9866649,185.52,185.5,61.7]
[1761897665875,3.9866649,185.51,185.5,62.39]
[1761897666388,3.9866649,185.52,185.5,62.39]
[1761897666691,8.12296569,185.54,185.5,62.39]
[1761897666692,3.9866649,185.51,185.5,62.39]
[1761897666871,5.99995381,185.53,185.5,62.39]
[1761897667077,3.9866649,185.52,185.5,62.39]
[1761897667261,3.9866649,185.51,185.5,0.69]
[1761897667464,2.01328891,185.54,185.51,0.69]
[1761897667682,24.58650029,185.53,185.51,0.69]
[1761897667991,3.99450029,185.52,185.51,0.69]
[1761897670689,3.99450029,185.52,185.49,8.09439404]
[1761897670994,3.99450029,185.51,185.5,0.69]
[1761897671875,3.99450029,185.51,185.5,6.08083557]
[1761897672190,3.99450029,185.51,185.5,8.09412448]
[1761897672997,3.99450029,185.51,185.5,69.79412448]
[1761897673787,3.99450029,185.51,185.5,67.78083557]
[1761897674088,3.99450029,185.51,185.5,69.79412448]
[1761897675079,3.99450029,185.51,185.5,64.40328891]
[1761897675872,3.99450029,185.51,185.5,69.79412448]
[1761897678499,3.99450029,185.51,185.5,95.78821888]
[1761897678682,29.60176832,185.59,185.51,9.78882769]
[1761897678994,8.33605808,185.58,185.54,2.01328891]
[1761897679293,4.0245111,185.57,185.55,2.72328891]
[1761897679484,4.0245111,185.56,185.55,0.71]
[1761897679676,4.0245111,185.56,185.55,2.72328891]
[1761897681391,4.0245111,185.56,185.55,2.01328891]
[1761897682876,4.50513355,185.63,185.56,9.78882769]
[1761897683087,3.62037967,185.68,185.62,2.01328891]
[1761897683399,3.62037967,185.7,185.67,2.01328891]
[1761897683597,20.592,185.69,185.68,2.01328891]
[1761897683777,20.592,185.68,185.67,2.01328891]
[1761897684292,3.62037967,185.7,185.67,2.01328891]
[1761897684599,20.592,185.68,185.66,2.01328891]
[1761897686301,20.592,185.68,185.67,2.01328891]
[1761897686892,20.592,185.68,185.66,0.71]
[1761897687198,20.592,185.68,185.67,2.01328891]
[1761897687987,20.592,185.69,185.66,2.72328891]
[1761897688186,21.282,185.69,185.66,2.72328891]
[1761897688812,21.282,185.69,185.66,8.10943593]
[1761897689011,20.592,185.69,185.67,2.01328891]
[1761897689516,0.85,185.71,185.67,2.01328891]
[1761897689807,20.592,185.69,185.67,2.01328891]
[1761897690200,21.242,185.69,185.66,2.01328891]
[1761897691628,20.592,185.66,185.58,63.71328891]
[1761897691911,7.40045379,185.63,185.58,23.60166756]
[1761897692121,7.40045379,185.63,185.58,7.40165136]
[1761897692290,0.65,185.62,185.58,7.40165136]
[1761897692496,0.65,185.62,185.58,6.07836245]
[1761897693921,21.242,185.62,185.58,6.07836245]
[1761897694297,21.242,185.62,185.58,8.09165136]
[1761897694497,0.65,185.62,185.58,7.40165136]
[1761897694720,0.65,185.62,185.59,0.69]
[1761897694896,20.592,185.63,185.59,0.69]
[1761897695104,21.242,185.63,185.59,0.69]
[1761897695516,20.592,185.62,185.59,8.09142089]
[1761897696130,21.242,185.63,185.59,8.09142089]
[1761897696609,0.65,185.62,185.59,8.09142089]
[1761897697014,20.592,185.62,185.59,8.09142089]
[1761897697845,20.592,185.62,185.59,2.70328891]
[1761897698008,21.242,185.62,185.59,2.70328891]
[1761897698206,20.592,185.63,185.6,2.70328891]
[1761897698522,0.65,185.68,185.62,2.01328891]
[1761897698722,21.242,185.68,185.64,2.01328891]
[1761897699132,21.242,185.68,185.64,2.70328891]
[1761897699332,21.242,185.68,185.65,3.13940848]
[1761897699636,20.592,185.67,185.65,3.82940848]
[1761897699815,0.65,185.69,185.65,3.13940848]
[1761897700021,20.592,185.67,185.65,3.13940848]
[1761897700404,20.592,185.67,185.64,3.13940848]
[1761897700611,3.78940848,185.66,185.61,3.13940848]
[1761897700822,0.65,185.66,185.62,3.13940848]
[1761897701025,0.65,185.66,185.62,3.82940848]
[1761897702018,0.65,185.66,185.61,5.38758444]
[1761897702019,20.592,185.65,185.61,3.13940848]
[1761897702232,23.73140848,185.65,185.6,3.13940848]
[1761897702530,24.38140848,185.65,185.61,0.69]
[1761897702720,0.65,185.64,185.6,3.82940848]
[1761897704336,0.65,185.64,185.6,9.21733524]
[1761897706943,6.03680396,185.64,185.6,3.82940848]
[1761897707645,0.65,185.64,185.6,9.21732784]
[1761897707839,0.65,185.64,185.61,3.13940848]
[1761897708046,0.65,185.64,185.61,3.82940848]
[1761897708228,25.97853707,185.65,185.61,65.52940848]
[1761897708544,26.62853707,185.65,185.61,65.52940848]
[1761897708948,0.65,185.64,185.61,65.52940848]
[1761897710358,0.65,185.64,185.61,62.39]
[1761897710648,26.62853707,185.65,185.61,62.39]
[1761897711129,0.65,185.64,185.61,61.7]
[1761897711724,6.03678118,185.64,185.61,62.39]